Workbook

Sheet INGRESO DE DATOS
A8: COTIZACION DE SEGURO MEDICO INTERNACIONAL
A10: 1. INGRESE LOS DATOS DEL PROPUESTO ASEGURADO:
C12: Nombre del Asegurado principal: | D12: NOMBRE COMPLETO
F14: Número de adultos en la póliza: | G14: 1 | I14: Número de hijos en la póliza: | J14: 0
F16: Edad del titular: | G16: 18 | I16: Edad de cónyuge: | J16: 18
A19: 2. INGRESE EL NOMBRE DE LA AGENCIA ASESORA:
C21: Nombre de la Agencia: | D21: AGENCIA
A24: 3. ESCOJA EL PRODUCTO PARA VISUALIZAR LA COTIZACION RESPECTIVA:

Sheet Exclusive
C10: Cotización de Seguro Médico Internacional - Bupa EXCLUSIVE Care
H12: =+'INGRESO DE DATOS'!$D$12 -> NOMBRE COMPLETO
H14: =+'INGRESO DE DATOS'!$D$21 -> AGENCIA
J16: =+'INGRESO DE DATOS'!$G$14 -> 1 | M16: =+'INGRESO DE DATOS'!$G$16 -> 18
F17: FECHA DE COTIZACION :
F18: =NOW() -> 2023-08-16T10:37:45.530 | J18: =+'INGRESO DE DATOS'!$J$14 -> 0 | M18: =+'INGRESO DE DATOS'!$J$16 -> 18
I20: TRUE | K20: COMPLICACIONES DE MATERNIDAD
J22: FALSE
F25: Deducibles | H25: PLAN 1 | I25: PLAN 2 | J25: PLAN 3 | K25: PLAN 4 | L25: PLAN 5 | M25: PLAN 6
F26: Dentro del pais de residencia | H26: n/a | I26: 1000 | J26: 2000 | K26: 5000 | L26: 10000 | M26: 20000
F27: Fuera del pais de residencia | H27: n/a | I27: 2000 | J27: 3000 | K27: 5000 | L27: 10000 | M27: 20000
F30: Tarifas Anuales
F31: Prima de Titular : | H31: n/a | I31: =VLOOKUP($M$16,Tablas!$A$6:$H$29,4,TRUE) -> 10919 | J31: =VLOOKUP($M$16,Tablas!$A$6:$H$29,5,TRUE) -> 7213 | K31: =VLOOKUP($M$16,Tablas!$A$6:$H$29,6,TRUE) -> 5189 | L31: =VLOOKUP($M$16,Tablas!$A$6:$H$29,7,TRUE) -> 3683 | M31: =VLOOKUP($M$16,Tablas!$A$6:$H$29,8,TRUE) -> 2896
F32: Prima de Cónyuge | H32: n/a | I32: =IF($J$16=1,0,(VLOOKUP($M$18,Tablas!$A$6:$H$29,4,TRUE))) -> 0 | J32: =IF($J$16=1,0,(VLOOKUP($M$18,Tablas!$A$6:$H$29,5,TRUE))) -> 0 | K32: =IF($J$16=1,0,(VLOOKUP($M$18,Tablas!$A$6:$H$29,6,TRUE))) -> 0 | L32: =IF($J$16=1,0,(VLOOKUP($M$18,Tablas!$A$6:$H$29,7,TRUE))) -> 0 | M32: =IF($J$16=1,0,(VLOOKUP($M$18,Tablas!$A$6:$H$29,8,TRUE))) -> 0
F33: Primas Hijos : | H33: n/a | I33: =IF($J$18=0,0,(VLOOKUP($J$18,Tablas!$A$30:$H$32,4,TRUE))) -> 0 | J33: =IF($J$18=0,0,(VLOOKUP($J$18,Tablas!$A$30:$H$32,5,TRUE))) -> 0 | K33: =IF($J$18=0,0,(VLOOKUP($J$18,Tablas!$A$30:$H$32,6,TRUE))) -> 0 | L33: =IF($J$18=0,0,(VLOOKUP($J$18,Tablas!$A$30:$H$32,7,TRUE))) -> 0 | M33: =IF($J$18=0,0,(VLOOKUP($J$18,Tablas!$A$30:$H$32,8,TRUE))) -> 0
F34: Prima Rider Complic. Maternidad | H34: n/a | I34: =+IF($I$20=FALSE,0,Tablas!D$33) -> 0 | J34: =+IF($I$20=FALSE,0,Tablas!E$33) -> 0 | K34: =+IF($I$20=FALSE,0,Tablas!F$33) -> 225 | L34: =+IF($I$20=FALSE,0,Tablas!G$33) -> 225 | M34: =+IF($I$20=FALSE,0,Tablas!H$33) -> 225
F35: TOTAL PRIMA NETA : | H35: n/a | I35: =SUM(I31:I34) -> 10919 | J35: =SUM(J31:J34) -> 7213 | K35: =SUM(K31:K34) -> 5414 | L35: =SUM(L31:L34) -> 3908 | M35: =SUM(M31:M34) -> 3121
F36: Costo Administrativo Anual : | H36: n/a | I36: 75 | J36: 75 | K36: 75 | L36: 75 | M36: 75
F37: GRAN TOTAL : | H37: n/a | I37: =SUM(I35:I36) -> 10994 | J37: =SUM(J35:J36) -> 7288 | K37: =SUM(K35:K36) -> 5489 | L37: =SUM(L35:L36) -> 3983 | M37: =SUM(M35:M36) -> 3196
F39: Tarifas Semestrales
F40: Prima de Titular : | H40: n/a | I40: =VLOOKUP($M$16,Tablas!$A$39:$H$62,4,TRUE) -> 5787.07 | J40: =VLOOKUP($M$16,Tablas!$A$39:$H$62,5,TRUE) -> 3822.89 | K40: =VLOOKUP($M$16,Tablas!$A$39:$H$62,6,TRUE) -> 2750.17 | L40: =VLOOKUP($M$16,Tablas!$A$39:$H$62,7,TRUE) -> 1951.99 | M40: =VLOOKUP($M$16,Tablas!$A$39:$H$62,8,TRUE) -> 1534.88
F41: Prima de Cónyuge | H41: n/a | I41: =IF($J$16=1,0,(VLOOKUP($M$18,Tablas!$A$39:$H$62,4,TRUE))) -> 0 | J41: =IF($J$16=1,0,(VLOOKUP($M$18,Tablas!$A$39:$H$62,5,TRUE))) -> 0 | K41: =IF($J$16=1,0,(VLOOKUP($M$18,Tablas!$A$39:$H$62,6,TRUE))) -> 0 | L41: =IF($J$16=1,0,(VLOOKUP($M$18,Tablas!$A$39:$H$62,7,TRUE))) -> 0 | M41: =IF($J$16=1,0,(VLOOKUP($M$18,Tablas!$A$39:$H$62,8,TRUE))) -> 0
F42: Primas Hijos : | H42: n/a | I42: =IF($J$18=0,0,(VLOOKUP($J$18,Tablas!$A$63:$H$65,4,TRUE))) -> 0 | J42: =IF($J$18=0,0,(VLOOKUP($J$18,Tablas!$A$63:$H$65,5,TRUE))) -> 0 | K42: =IF($J$18=0,0,(VLOOKUP($J$18,Tablas!$A$63:$H$65,6,TRUE))) -> 0 | L42: =IF($J$18=0,0,(VLOOKUP($J$18,Tablas!$A$63:$H$65,7,TRUE))) -> 0 | M42: =IF($J$18=0,0,(VLOOKUP($J$18,Tablas!$A$63:$H$65,8,TRUE))) -> 0
F43: Prima Rider Complic. Maternidad | H43: n/a | I43: =+IF($I$20=FALSE,0,Tablas!D$66) -> 0 | J43: =+IF($I$20=FALSE,0,Tablas!E$66) -> 0 | K43: =+IF($I$20=FALSE,0,Tablas!F$66) -> 119.25 | L43: =+IF($I$20=FALSE,0,Tablas!G$66) -> 119.25 | M43: =+IF($I$20=FALSE,0,Tablas!H$66) -> 119.25
F44: TOTAL PRIMA NETA : | H44: n/a | I44: =SUM(I40:I43) -> 5787.07 | J44: =SUM(J40:J43) -> 3822.89 | K44: =SUM(K40:K43) -> 2869.42 | L44: =SUM(L40:L43) -> 2071.24 | M44: =SUM(M40:M43) -> 1654.13
F45: Costo Administrativo Anual : | H45: n/a | I45: 75 | J45: 75 | K45: 75 | L45: 75 | M45: 75
F46: GRAN TOTAL (1ra Cuota) : | H46: n/a | I46: =SUM(I44:I45) -> 5862.07 | J46: =SUM(J44:J45) -> 3897.89 | K46: =SUM(K44:K45) -> 2944.42 | L46: =SUM(L44:L45) -> 2146.24 | M46: =SUM(M44:M45) -> 1729.13
F47: GRAN TOTAL (2da Cuota) : | H47: n/a | I47: =I44 -> 5787.07 | J47: =J44 -> 3822.89 | K47: 2869.42 | L47: 2071.24 | M47: 1654.13
F48: Tarifas en US $ - Válidas desde 01 enero 2023
F50: Este presupuesto solamente tiene carácter informativo y en ningún momento expresa compromiso legal para suministrarle cobertura de seguro. La emisión de una póliza de seguro Bupa está sujeta a todas las evaluaciones de riesgo por parte de Bupa y a la recepción de todos los pagos de prima requeridos.

Sheet Privilege
C10: Cotización de Seguro Médico Internacional - Bupa PRIVILEGE Care
H12: =+'INGRESO DE DATOS'!$D$12 -> NOMBRE COMPLETO
H14: =+'INGRESO DE DATOS'!$D$21 -> AGENCIA
J16: =+'INGRESO DE DATOS'!$G$14 -> 1 | M16: =+'INGRESO DE DATOS'!$G$16 -> 18
F17: FECHA DE COTIZACION :
F18: =NOW() -> 2023-08-16T10:37:45.530 | J18: =+'INGRESO DE DATOS'!$J$14 -> 0 | M18: =+'INGRESO DE DATOS'!$J$16 -> 18
I20: TRUE | K20: COMPLICACIONES DE MATERNIDAD
J22: FALSE
F25: Deducibles | H25: PLAN 1 | I25: PLAN 2 | J25: PLAN 3 | K25: PLAN 4 | L25: PLAN 5 | M25: PLAN 6
F26: Dentro del pais de residencia | H26: n/a | I26: 1000 | J26: 2000 | K26: 5000 | L26: 10000 | M26: 20000
F27: Fuera del pais de residencia | H27: n/a | I27: 2000 | J27: 3000 | K27: 5000 | L27: 10000 | M27: 20000
F30: Tarifas Anuales
F31: Prima de Titular : | H31: n/a | I31: =VLOOKUP($M$16,Tablas!$A$140:$H$163,4,TRUE) -> 9139 | J31: =VLOOKUP($M$16,Tablas!$A$140:$H$163,5,TRUE) -> 6286 | K31: =VLOOKUP($M$16,Tablas!$A$140:$H$163,6,TRUE) -> 4491 | L31: =VLOOKUP($M$16,Tablas!$A$140:$H$163,7,TRUE) -> 3185 | M31: =VLOOKUP($M$16,Tablas!$A$140:$H$163,8,TRUE) -> 2423
F32: Prima de Cónyuge | H32: n/a | I32: =IF($J$16=1,0,(VLOOKUP($M$18,Tablas!$A$140:$H$163,4,TRUE))) -> 0 | J32: =IF($J$16=1,0,(VLOOKUP($M$18,Tablas!$A$140:$H$163,5,TRUE))) -> 0 | K32: =IF($J$16=1,0,(VLOOKUP($M$18,Tablas!$A$140:$H$163,6,TRUE))) -> 0 | L32: =IF($J$16=1,0,(VLOOKUP($M$18,Tablas!$A$140:$H$163,7,TRUE))) -> 0 | M32: =IF($J$16=1,0,(VLOOKUP($M$18,Tablas!$A$140:$H$163,8,TRUE))) -> 0
F33: Primas Hijos : | H33: n/a | I33: =IF($J$18=0,0,(VLOOKUP($J$18,Tablas!$A$164:$H$166,4,TRUE))) -> 0 | J33: =IF($J$18=0,0,(VLOOKUP($J$18,Tablas!$A$164:$H$166,5,TRUE))) -> 0 | K33: =IF($J$18=0,0,(VLOOKUP($J$18,Tablas!$A$164:$H$166,6,TRUE))) -> 0 | L33: =IF($J$18=0,0,(VLOOKUP($J$18,Tablas!$A$164:$H$166,7,TRUE))) -> 0 | M33: =IF($J$18=0,0,(VLOOKUP($J$18,Tablas!$A$164:$H$166,8,TRUE))) -> 0
F34: Prima Rider Complic. Maternidad | H34: n/a | I34: =+IF($I$20=FALSE,0,Tablas!D$167) -> 0 | J34: =+IF($I$20=FALSE,0,Tablas!E$167) -> 0 | K34: =+IF($I$20=FALSE,0,Tablas!F$167) -> 225 | L34: =+IF($I$20=FALSE,0,Tablas!G$167) -> 225 | M34: =+IF($I$20=FALSE,0,Tablas!H$167) -> 225
F35: TOTAL PRIMA NETA : | H35: n/a | I35: =SUM(I31:I34) -> 9139 | J35: =SUM(J31:J34) -> 6286 | K35: =SUM(K31:K34) -> 4716 | L35: =SUM(L31:L34) -> 3410 | M35: =SUM(M31:M34) -> 2648
F36: Costo Administrativo Anual : | H36: n/a | I36: 75 | J36: 75 | K36: 75 | L36: 75 | M36: 75
F37: GRAN TOTAL : | H37: n/a | I37: =SUM(I35:I36) -> 9214 | J37: =SUM(J35:J36) -> 6361 | K37: =SUM(K35:K36) -> 4791 | L37: =SUM(L35:L36) -> 3485 | M37: =SUM(M35:M36) -> 2723
F39: Tarifas Semestrales
F40: Prima de Titular : | H40: n/a | I40: =VLOOKUP($M$16,Tablas!$A$173:$H$196,4,TRUE) -> 4843.67 | J40: =VLOOKUP($M$16,Tablas!$A$173:$H$196,5,TRUE) -> 3331.58 | K40: =VLOOKUP($M$16,Tablas!$A$173:$H$196,6,TRUE) -> 2380.23 | L40: =VLOOKUP($M$16,Tablas!$A$173:$H$196,7,TRUE) -> 1688.05 | M40: =VLOOKUP($M$16,Tablas!$A$173:$H$196,8,TRUE) -> 1284.19
F41: Prima de Cónyuge | H41: n/a | I41: =IF($J$16=1,0,(VLOOKUP($M$18,Tablas!$A$173:$H$196,4,TRUE))) -> 0 | J41: =IF($J$16=1,0,(VLOOKUP($M$18,Tablas!$A$173:$H$196,5,TRUE))) -> 0 | K41: =IF($J$16=1,0,(VLOOKUP($M$18,Tablas!$A$173:$H$196,6,TRUE))) -> 0 | L41: =IF($J$16=1,0,(VLOOKUP($M$18,Tablas!$A$173:$H$196,7,TRUE))) -> 0 | M41: =IF($J$16=1,0,(VLOOKUP($M$18,Tablas!$A$173:$H$196,8,TRUE))) -> 0
F42: Primas Hijos : | H42: n/a | I42: =IF($J$18=0,0,(VLOOKUP($J$18,Tablas!$A$197:$H$199,4,TRUE))) -> 0 | J42: =IF($J$18=0,0,(VLOOKUP($J$18,Tablas!$A$197:$H$199,5,TRUE))) -> 0 | K42: =IF($J$18=0,0,(VLOOKUP($J$18,Tablas!$A$197:$H$199,6,TRUE))) -> 0 | L42: =IF($J$18=0,0,(VLOOKUP($J$18,Tablas!$A$197:$H$199,7,TRUE))) -> 0 | M42: =IF($J$18=0,0,(VLOOKUP($J$18,Tablas!$A$197:$H$199,8,TRUE))) -> 0
F43: Prima Rider Complic. Maternidad | H43: n/a | I43: =+IF($I$20=FALSE,0,Tablas!D$200) -> 0 | J43: =+IF($I$20=FALSE,0,Tablas!E$200) -> 0 | K43: =+IF($I$20=FALSE,0,Tablas!F$200) -> 119.25 | L43: =+IF($I$20=FALSE,0,Tablas!G$200) -> 119.25 | M43: =+IF($I$20=FALSE,0,Tablas!H$200) -> 119.25
F44: TOTAL PRIMA NETA : | H44: n/a | I44: =SUM(I40:I43) -> 4843.67 | J44: =SUM(J40:J43) -> 3331.58 | K44: =SUM(K40:K43) -> 2499.48 | L44: =SUM(L40:L43) -> 1807.3 | M44: =SUM(M40:M43) -> 1403.44
F45: Costo Administrativo Anual : | H45: n/a | I45: 75 | J45: 75 | K45: 75 | L45: 75 | M45: 75
F46: GRAN TOTAL (1ra Cuota) : | H46: n/a | I46: =SUM(I44:I45) -> 4918.67 | J46: =SUM(J44:J45) -> 3406.58 | K46: =SUM(K44:K45) -> 2574.48 | L46: =SUM(L44:L45) -> 1882.3 | M46: =SUM(M44:M45) -> 1478.44
F47: GRAN TOTAL (2da Cuota) : | H47: n/a | I47: =I44 -> 4843.67 | J47: =J44 -> 3331.58 | K47: 2499.48 | L47: 1807.3 | M47: 1403.44
F48: Tarifas en US $ - Válidas desde 01 enero 2023
F50: Este presupuesto solamente tiene carácter informativo y en ningún momento expresa compromiso legal para suministrarle cobertura de seguro. La emisión de una póliza de seguro Bupa está sujeta a todas las evaluaciones de riesgo por parte de Bupa y a la recepción de todos los pagos de prima requeridos.

Sheet Advantage (Mundial)
C10: Cotización de Seguro Médico Internacional - Bupa ADVANTAGE Care
H12: =+'INGRESO DE DATOS'!$D$12 -> NOMBRE COMPLETO
H14: =+'INGRESO DE DATOS'!$D$21 -> AGENCIA
J16: =+'INGRESO DE DATOS'!$G$14 -> 1 | M16: =+'INGRESO DE DATOS'!$G$16 -> 18
F17: FECHA DE COTIZACION :
F18: =NOW() -> 2023-08-16T10:37:45.530 | J18: =+'INGRESO DE DATOS'!$J$14 -> 0 | M18: =+'INGRESO DE DATOS'!$J$16 -> 18
I20: TRUE | K20: COMPLICACIONES DE MATERNIDAD
I22: TRUE | K22: TRASPLANTE DE ORGANOS
F25: Deducibles | H25: PLAN 1 | I25: PLAN 2 | J25: PLAN 3 | K25: PLAN 4 | L25: PLAN 5 | M25: PLAN 6
F26: Dentro del pais de residencia | H26: n/a | I26: 1000 | J26: 2000 | K26: 5000 | L26: 10000 | M26: 20000
F27: Fuera del pais de residencia | H27: n/a | I27: 2000 | J27: 3000 | K27: 5000 | L27: 10000 | M27: 20000
F30: Tarifas Anuales
F31: Prima de Titular : | H31: n/a | I31: =VLOOKUP($M$16,Tablas!$A$274:$H$297,4,TRUE) -> 5913 | J31: =VLOOKUP($M$16,Tablas!$A$274:$H$297,5,TRUE) -> 4445 | K31: =VLOOKUP($M$16,Tablas!$A$274:$H$297,6,TRUE) -> 3404 | L31: =VLOOKUP($M$16,Tablas!$A$274:$H$297,7,TRUE) -> 2611 | M31: =VLOOKUP($M$16,Tablas!$A$274:$H$297,8,TRUE) -> 2068
F32: Prima de Cónyuge | H32: n/a | I32: =IF($J$16=1,0,(VLOOKUP($M$18,Tablas!$A$274:$H$297,4,TRUE))) -> 0 | J32: =IF($J$16=1,0,(VLOOKUP($M$18,Tablas!$A$274:$H$297,5,TRUE))) -> 0 | K32: =IF($J$16=1,0,(VLOOKUP($M$18,Tablas!$A$274:$H$297,6,TRUE))) -> 0 | L32: =IF($J$16=1,0,(VLOOKUP($M$18,Tablas!$A$274:$H$297,7,TRUE))) -> 0 | M32: =IF($J$16=1,0,(VLOOKUP($M$18,Tablas!$A$274:$H$297,8,TRUE))) -> 0
F33: Primas Hijos : | H33: n/a | I33: =IF($J$18=0,0,(VLOOKUP($J$18,Tablas!$A$298:$H$300,4,TRUE))) -> 0 | J33: =IF($J$18=0,0,(VLOOKUP($J$18,Tablas!$A$298:$H$300,5,TRUE))) -> 0 | K33: =IF($J$18=0,0,(VLOOKUP($J$18,Tablas!$A$298:$H$300,6,TRUE))) -> 0 | L33: =IF($J$18=0,0,(VLOOKUP($J$18,Tablas!$A$298:$H$300,7,TRUE))) -> 0 | M33: =IF($J$18=0,0,(VLOOKUP($J$18,Tablas!$A$298:$H$300,8,TRUE))) -> 0
F34: Prima Rider Complic. Maternidad | H34: n/a | I34: =+IF($I$20=FALSE,0,Tablas!D$301) -> 225 | J34: =+IF($I$20=FALSE,0,Tablas!E$301) -> 225 | K34: =+IF($I$20=FALSE,0,Tablas!F$301) -> 225 | L34: =+IF($I$20=FALSE,0,Tablas!G$301) -> 225 | M34: =+IF($I$20=FALSE,0,Tablas!H$301) -> 225
F35: Prima Rider Trasplante Organos | H35: n/a | I35: =IF($I$22=FALSE,0,Tablas!D$302) -> 300 | J35: =IF($I$22=FALSE,0,Tablas!E$302) -> 300 | K35: =IF($I$22=FALSE,0,Tablas!F$302) -> 300 | L35: =IF($I$22=FALSE,0,Tablas!G$302) -> 300 | M35: =IF($I$22=FALSE,0,Tablas!H$302) -> 300
F36: TOTAL PRIMA NETA : | H36: n/a | I36: =SUM(I31:I35) -> 6438 | J36: 4970 | K36: 3929 | L36: 3136 | M36: 2593
F37: Costo Administrativo Anual : | H37: n/a | I37: 75 | J37: 75 | K37: 75 | L37: 75 | M37: 75
F38: GRAN TOTAL : | H38: n/a | I38: =SUM(I36:I37) -> 6513 | J38: =SUM(J36:J37) -> 5045 | K38: =SUM(K36:K37) -> 4004 | L38: =SUM(L36:L37) -> 3211 | M38: =SUM(M36:M37) -> 2668
F40: Tarifas Semestrales
F41: Prima de Titular : | H41: n/a | I41: =VLOOKUP($M$16,Tablas!$A$307:$H$330,4,TRUE) -> 3133.89 | J41: =VLOOKUP($M$16,Tablas!$A$307:$H$330,5,TRUE) -> 2355.85 | K41: =VLOOKUP($M$16,Tablas!$A$307:$H$330,6,TRUE) -> 1804.12 | L41: =VLOOKUP($M$16,Tablas!$A$307:$H$330,7,TRUE) -> 1383.83 | M41: =VLOOKUP($M$16,Tablas!$A$307:$H$330,8,TRUE) -> 1096.04
F42: Prima de Cónyuge | H42: n/a | I42: =IF($J$16=1,0,(VLOOKUP($M$18,Tablas!$A$307:$H$330,4,TRUE))) -> 0 | J42: =IF($J$16=1,0,(VLOOKUP($M$18,Tablas!$A$307:$H$330,5,TRUE))) -> 0 | K42: =IF($J$16=1,0,(VLOOKUP($M$18,Tablas!$A$307:$H$330,6,TRUE))) -> 0 | L42: =IF($J$16=1,0,(VLOOKUP($M$18,Tablas!$A$307:$H$330,7,TRUE))) -> 0 | M42: =IF($J$16=1,0,(VLOOKUP($M$18,Tablas!$A$307:$H$330,8,TRUE))) -> 0
F43: Primas Hijos : | H43: n/a | I43: =IF($J$18=0,0,(VLOOKUP($J$18,Tablas!$A$331:$H$333,4,TRUE))) -> 0 | J43: =IF($J$18=0,0,(VLOOKUP($J$18,Tablas!$A$331:$H$333,5,TRUE))) -> 0 | K43: =IF($J$18=0,0,(VLOOKUP($J$18,Tablas!$A$331:$H$333,6,TRUE))) -> 0 | L43: =IF($J$18=0,0,(VLOOKUP($J$18,Tablas!$A$331:$H$333,7,TRUE))) -> 0 | M43: =IF($J$18=0,0,(VLOOKUP($J$18,Tablas!$A$331:$H$333,8,TRUE))) -> 0
F44: Prima Rider Complic. Maternidad | H44: n/a | I44: =+IF($I$20=FALSE,0,Tablas!D$334) -> 119.25 | J44: =+IF($I$20=FALSE,0,Tablas!E$334) -> 119.25 | K44: =+IF($I$20=FALSE,0,Tablas!F$334) -> 119.25 | L44: =+IF($I$20=FALSE,0,Tablas!G$334) -> 119.25 | M44: =+IF($I$20=FALSE,0,Tablas!H$334) -> 119.25
F45: Prima Rider Trasplante Organos | H45: n/a | I45: =IF($I$22=FALSE,0,Tablas!D$335) -> 159 | J45: =IF($I$22=FALSE,0,Tablas!E$335) -> 159 | K45: =IF($I$22=FALSE,0,Tablas!F$335) -> 159 | L45: =IF($I$22=FALSE,0,Tablas!G$335) -> 159 | M45: =IF($I$22=FALSE,0,Tablas!H$335) -> 159
F46: TOTAL PRIMA NETA : | H46: n/a | I46: =SUM(I41:I45) -> 3412.14 | J46: 2634.1 | K46: 2082.37 | L46: 1662.08 | M46: 1374.29
F47: Costo Administrativo Anual : | H47: n/a | I47: 75 | J47: 75 | K47: 75 | L47: 75 | M47: 75
F48: GRAN TOTAL (1ra Cuota) : | H48: n/a | I48: =SUM(I46:I47) -> 3487.14 | J48: =SUM(J46:J47) -> 2709.1 | K48: =SUM(K46:K47) -> 2157.37 | L48: =SUM(L46:L47) -> 1737.08 | M48: =SUM(M46:M47) -> 1449.29
F49: GRAN TOTAL (2da Cuota) : | H49: n/a | I49: =I46 -> 3412.14 | J49: =J46 -> 2634.1 | K49: 2082.37 | L49: 1662.08 | M49: 1374.29
F50: Tarifas en US $ - Válidas desde 01 enero 2023
F52: Este presupuesto solamente tiene carácter informativo y en ningún momento expresa compromiso legal para suministrarle cobertura de seguro. La emisión de una póliza de seguro Bupa está sujeta a todas las evaluaciones de riesgo por parte de Bupa y a la recepción de todos los pagos de prima requeridos.

Sheet Advantage (LA) (hidden)
A10: Cotización de Seguro Médico Internacional - Bupa ADVANTAGE Care (cobertura solo Latinoamérica)
A12: Bupa Advantage Care (cobertura solo en Latinoamérica) | H12: =+'INGRESO DE DATOS'!$D$12 -> NOMBRE COMPLETO
A13: Cobertura Máxima anual | C13: US $ 3,500,000
A14: Cobertura Geografica | C14: Limitada a Latinoamérica excluyendo México | H14: =+'INGRESO DE DATOS'!$D$21 -> AGENCIA
A15: Condiciones médicas cubiertas | C15: Todas las condiciones médicas
A16: Redes de proveedores | C16: Red de Proveedores "Bupa Advantage" | J16: =+'INGRESO DE DATOS'!$G$14 -> 1 | M16: =+'INGRESO DE DATOS'!$G$16 -> 18
A17: Opciones fuera de la Red | C17: NO, solo en casos de emergencia | F17: FECHA DE COTIZACION :
A18: Requiere preautorización | C18: SI, 30% de penalización por omitir prenotificación | F18: =NOW() -> 2023-08-16T10:37:45.530 | J18: =+'INGRESO DE DATOS'!$J$14 -> 0 | M18: =+'INGRESO DE DATOS'!$J$16 -> 18
A20: Número máximo de días de hospitalización | C20: Ilimitado | I20: TRUE | K20: COMPLICACIONES DE MATERNIDAD
A21: Habitación y alimentación | C21: 100% dentro de Red Bupa
C22: "UCR" para L.A. en emergencias fuera de Red Bupa | I22: TRUE | K22: TRASPLANTE DE ORGANOS
A23: Cuidados Intensivos | C23: 100% dentro de Red Bupa
C24: "UCR" para L.A. en emergencias fuera de Red Bupa
A25: Cobertura de Maternidad | C25: $5,000 (Excepto planes 4,5, y 6) | F25: Deducibles | H25: PLAN 1 | I25: PLAN 2 | J25: PLAN 3 | K25: PLAN 4 | L25: PLAN 5 | M25: PLAN 6
A26: Cobertura Provisional de Recién Nacido | C26: $30,000 por los primeros 90 días | F26: Dentro del pais de residencia | H26: n/a | I26: 1000 | J26: 2000 | K26: 5000 | L26: 10000 | M26: 20000
A27: Cuidado del Recién Nacido saludable | C27: Ya incluída dentro del beneficio de Maternidad | F27: Fuera del pais de residencia | H27: n/a | I27: 2000 | J27: 3000 | K27: 5000 | L27: 10000 | M27: 20000
A28: Cobertura de Complicaciones de Maternidad | C28: Disponible a través de cobertura opcional adicional
A29: Trasplante de Organos | C29: $1,000,000 de por vida, por diagnóstico
A30: Condiciones congénitas y hereditarias | C30: <18 años $300,000 de por vida; >=18 al 100% | F30: Tarifas Anuales
A31: Coberturas opcionales (Riders) | C31: Complicaciones de Maternidad por $500,000 | F31: Prima de Titular : | H31: n/a | I31: =VLOOKUP($M$16,Tablas!$A$341:$H$364,4,TRUE) -> 4381 | J31: =VLOOKUP($M$16,Tablas!$A$341:$H$364,5,TRUE) -> 3291 | K31: =VLOOKUP($M$16,Tablas!$A$341:$H$364,6,TRUE) -> 2519 | L31: =VLOOKUP($M$16,Tablas!$A$341:$H$364,7,TRUE) -> 1924 | M31: =VLOOKUP($M$16,Tablas!$A$341:$H$364,8,TRUE) -> 1520
C32: Trasplante de órganos por $ 300,000 adicionales | F32: Prima de Cónyuge | H32: n/a | I32: =IF($J$16=1,0,(VLOOKUP($M$18,Tablas!$A$341:$H$364,4,TRUE))) -> 0 | J32: =IF($J$16=1,0,(VLOOKUP($M$18,Tablas!$A$341:$H$364,5,TRUE))) -> 0 | K32: =IF($J$16=1,0,(VLOOKUP($M$18,Tablas!$A$341:$H$364,6,TRUE))) -> 0 | L32: =IF($J$16=1,0,(VLOOKUP($M$18,Tablas!$A$341:$H$364,7,TRUE))) -> 0 | M32: =IF($J$16=1,0,(VLOOKUP($M$18,Tablas!$A$341:$H$364,8,TRUE))) -> 0
A33: Acompañamiento de menores hospitalizados | C33: $300 por día | F33: Primas Hijos : | H33: n/a | I33: =IF($J$18=0,0,(VLOOKUP($J$18,Tablas!$A$365:$H$367,4,TRUE))) -> 0 | J33: =IF($J$18=0,0,(VLOOKUP($J$18,Tablas!$A$365:$H$367,5,TRUE))) -> 0 | K33: =IF($J$18=0,0,(VLOOKUP($J$18,Tablas!$A$365:$H$367,6,TRUE))) -> 0 | L33: =IF($J$18=0,0,(VLOOKUP($J$18,Tablas!$A$365:$H$367,7,TRUE))) -> 0 | M33: =IF($J$18=0,0,(VLOOKUP($J$18,Tablas!$A$365:$H$367,8,TRUE))) -> 0
A34: Ambulancia aérea | C34: $100,000 por año y ticket aéreo de retorno | F34: Prima Rider Complic. Maternidad | H34: n/a | I34: =+IF($I$20=FALSE,0,Tablas!D$368) -> 0 | J34: =+IF($I$20=FALSE,0,Tablas!E$368) -> 0 | K34: =+IF($I$20=FALSE,0,Tablas!F$368) -> 0 | L34: =+IF($I$20=FALSE,0,Tablas!G$368) -> 0 | M34: =+IF($I$20=FALSE,0,Tablas!H$368) -> 0
A35: Repatriación restos mortales | C35: 1 | F35: Prima Rider Trasplante Organos | H35: n/a | I35: =IF($I$22=FALSE,0,Tablas!D$369) -> 0 | J35: =IF($I$22=FALSE,0,Tablas!E$369) -> 0 | K35: =IF($I$22=FALSE,0,Tablas!F$369) -> 0 | L35: =IF($I$22=FALSE,0,Tablas!G$369) -> 0 | M35: =IF($I$22=FALSE,0,Tablas!H$369) -> 0
A36: Medicamentos por receta | C36: $6,000 por Asegurado, por año póliza | F36: TOTAL PRIMA NETA : | H36: n/a | I36: =SUM(I31:I35) -> 4381 | J36: 3291 | K36: 2519 | L36: 1924 | M36: 1520
A37: Almacenamiento de sangre de cordon umbilical | C37: $500 (Excepto planes 4,5, y 6) | F37: Costo Administrativo Anual : | H37: n/a | I37: 75 | J37: 75 | K37: 75 | L37: 75 | M37: 75
F38: GRAN TOTAL : | H38: n/a | I38: =SUM(I36:I37) -> 4456 | J38: =SUM(J36:J37) -> 3366 | K38: =SUM(K36:K37) -> 2594 | L38: =SUM(L36:L37) -> 1999 | M38: =SUM(M36:M37) -> 1595
A39: Atención médica en el hogar | C39: 100% de usual/acostumbrado y razonable
A40: Rehabilitación | C40: 100% de usual/acostumbrado y razonable | F40: Tarifas Semestrales
A41: Residencia y cuidados paliativos | C41: 100% de usual/acostumbrado y razonable | F41: Prima de Titular : | H41: n/a | I41: =VLOOKUP($M$16,Tablas!$A$374:$H$397,4,TRUE) -> 2321.93 | J41: =VLOOKUP($M$16,Tablas!$A$374:$H$397,5,TRUE) -> 1744.23 | K41: =VLOOKUP($M$16,Tablas!$A$374:$H$397,6,TRUE) -> 1335.07 | L41: =VLOOKUP($M$16,Tablas!$A$374:$H$397,7,TRUE) -> 1019.72 | M41: =VLOOKUP($M$16,Tablas!$A$374:$H$397,8,TRUE) -> 805.6
A42: Cobertura de actividades peligrosas | C42: 1 | F42: Prima de Cónyuge | H42: n/a | I42: =IF($J$16=1,0,(VLOOKUP($M$18,Tablas!$A$374:$H$397,4,TRUE))) -> 0 | J42: =IF($J$16=1,0,(VLOOKUP($M$18,Tablas!$A$374:$H$397,5,TRUE))) -> 0 | K42: =IF($J$16=1,0,(VLOOKUP($M$18,Tablas!$A$374:$H$397,6,TRUE))) -> 0 | L42: =IF($J$16=1,0,(VLOOKUP($M$18,Tablas!$A$374:$H$397,7,TRUE))) -> 0 | M42: =IF($J$16=1,0,(VLOOKUP($M$18,Tablas!$A$374:$H$397,8,TRUE))) -> 0
A43: Chequeos generales de rutina | C43: Hasta US$150 por año póliza.Sin deducible | F43: Primas Hijos : | H43: n/a | I43: =IF($J$18=0,0,(VLOOKUP($J$18,Tablas!$A$398:$H$400,4,TRUE))) -> 0 | J43: =IF($J$18=0,0,(VLOOKUP($J$18,Tablas!$A$398:$H$400,5,TRUE))) -> 0 | K43: =IF($J$18=0,0,(VLOOKUP($J$18,Tablas!$A$398:$H$400,6,TRUE))) -> 0 | L43: =IF($J$18=0,0,(VLOOKUP($J$18,Tablas!$A$398:$H$400,7,TRUE))) -> 0 | M43: =IF($J$18=0,0,(VLOOKUP($J$18,Tablas!$A$398:$H$400,8,TRUE))) -> 0
A44: Cobertura de VIH, SIDA, CAS | C44: Solo como efecto de transfusión de sangre | F44: Prima Rider Complic. Maternidad | H44: n/a | I44: =+IF($I$20=FALSE,0,Tablas!D$401) -> 0 | J44: =+IF($I$20=FALSE,0,Tablas!E$401) -> 0 | K44: =+IF($I$20=FALSE,0,Tablas!F$401) -> 0 | L44: =+IF($I$20=FALSE,0,Tablas!G$401) -> 0 | M44: =+IF($I$20=FALSE,0,Tablas!H$401) -> 0
A45: Cobertura de brazos y piernas artificiales | C45: $30,000 por año y hasta $120,000 de por vida | F45: Prima Rider Trasplante Organos | H45: n/a | I45: =IF($I$22=FALSE,0,Tablas!D$402) -> 0 | J45: =IF($I$22=FALSE,0,Tablas!E$402) -> 0 | K45: =IF($I$22=FALSE,0,Tablas!F$402) -> 0 | L45: =IF($I$22=FALSE,0,Tablas!G$402) -> 0 | M45: =IF($I$22=FALSE,0,Tablas!H$402) -> 0
A46: Cobertura extendida para dependientes en caso de muerte de asegurado principal | C46: 2 años sin costo | F46: TOTAL PRIMA NETA : | H46: n/a | I46: =SUM(I41:I45) -> 2321.93 | J46: 1744.23 | K46: 1335.07 | L46: 1019.72 | M46: 805.6
F47: Costo Administrativo Anual : | H47: n/a | I47: 75 | J47: 75 | K47: 75 | L47: 75 | M47: 75
F48: GRAN TOTAL (1ra Cuota) : | H48: n/a | I48: =SUM(I46:I47) -> 2396.93 | J48: =SUM(J46:J47) -> 1819.23 | K48: =SUM(K46:K47) -> 1410.07 | L48: =SUM(L46:L47) -> 1094.72 | M48: =SUM(M46:M47) -> 880.6
F49: GRAN TOTAL (2da Cuota) : | H49: n/a | I49: =I46 -> 2321.93 | J49: =J46 -> 1744.23 | K49: 1335.07 | L49: 1019.72 | M49: 805.6
F50: Tarifas en US $ - Válidas desde 01 Ene 2013

Sheet Secure
C10: Cotización de Seguro Médico Internacional - Bupa SECURE Care
H12: =+'INGRESO DE DATOS'!$D$12 -> NOMBRE COMPLETO
H14: =+'INGRESO DE DATOS'!$D$21 -> AGENCIA
J16: =+'INGRESO DE DATOS'!$G$14 -> 1 | M16: =+'INGRESO DE DATOS'!$G$16 -> 18
F17: FECHA DE COTIZACION :
F18: =NOW() -> 2023-08-16T10:37:45.530 | J18: =+'INGRESO DE DATOS'!$J$14 -> 0 | M18: =+'INGRESO DE DATOS'!$J$16 -> 18
I20: TRUE | K20: COMPLICACIONES DE MATERNIDAD
I22: TRUE | K22: TRASPLANTE DE ORGANOS
F25: Deducibles | H25: PLAN 1 | I25: PLAN 2 | J25: PLAN 3 | K25: PLAN 4 | L25: PLAN 5 | M25: PLAN 6
F26: Dentro del pais de residencia | H26: n/a | I26: 1000 | J26: 2000 | K26: 5000 | L26: 10000 | M26: 20000
F27: Fuera del pais de residencia | H27: n/a | I27: 2000 | J27: 3000 | K27: 5000 | L27: 10000 | M27: 20000
F30: Tarifas Anuales
F31: Prima de Titular : | H31: n/a | I31: =VLOOKUP($M$16,Tablas!$A$408:$H$431,4,TRUE) -> 4233 | J31: =VLOOKUP($M$16,Tablas!$A$408:$H$431,5,TRUE) -> 3321 | K31: =VLOOKUP($M$16,Tablas!$A$408:$H$431,6,TRUE) -> 2551 | L31: =VLOOKUP($M$16,Tablas!$A$408:$H$431,7,TRUE) -> 2168 | M31: =VLOOKUP($M$16,Tablas!$A$408:$H$431,8,TRUE) -> 1644
F32: Prima de Cónyuge | H32: n/a | I32: =IF($J$16=1,0,(VLOOKUP($M$18,Tablas!$A$408:$H$431,4,TRUE))) -> 0 | J32: =IF($J$16=1,0,(VLOOKUP($M$18,Tablas!$A$408:$H$431,5,TRUE))) -> 0 | K32: =IF($J$16=1,0,(VLOOKUP($M$18,Tablas!$A$408:$H$431,6,TRUE))) -> 0 | L32: =IF($J$16=1,0,(VLOOKUP($M$18,Tablas!$A$408:$H$431,7,TRUE))) -> 0 | M32: =IF($J$16=1,0,(VLOOKUP($M$18,Tablas!$A$408:$H$431,8,TRUE))) -> 0
F33: Primas Hijos : | H33: n/a | I33: =IF($J$18=0,0,(VLOOKUP($J$18,Tablas!$A$432:$H$434,4,TRUE))) -> 0 | J33: =IF($J$18=0,0,(VLOOKUP($J$18,Tablas!$A$432:$H$434,5,TRUE))) -> 0 | K33: =IF($J$18=0,0,(VLOOKUP($J$18,Tablas!$A$432:$H$434,6,TRUE))) -> 0 | L33: =IF($J$18=0,0,(VLOOKUP($J$18,Tablas!$A$432:$H$434,7,TRUE))) -> 0 | M33: =IF($J$18=0,0,(VLOOKUP($J$18,Tablas!$A$432:$H$434,8,TRUE))) -> 0
F34: Prima Rider Complic. Maternidad | H34: n/a | I34: =+IF($I$20=FALSE,0,Tablas!D$435) -> 225 | J34: =+IF($I$20=FALSE,0,Tablas!E$435) -> 225 | K34: =+IF($I$20=FALSE,0,Tablas!F$435) -> 225 | L34: =+IF($I$20=FALSE,0,Tablas!G$435) -> 225 | M34: =+IF($I$20=FALSE,0,Tablas!H$435) -> 225
F35: Prima Rider Trasplante Organos | H35: n/a | I35: =IF($I$22=FALSE,0,Tablas!D$436) -> 300 | J35: =IF($I$22=FALSE,0,Tablas!E$436) -> 300 | K35: =IF($I$22=FALSE,0,Tablas!F$436) -> 300 | L35: =IF($I$22=FALSE,0,Tablas!G$436) -> 300 | M35: =IF($I$22=FALSE,0,Tablas!H$436) -> 300
F36: TOTAL PRIMA NETA : | H36: n/a | I36: =SUM(I31:I35) -> 4758 | J36: 3846 | K36: 3076 | L36: 2693 | M36: 2169
F37: Costo Administrativo Anual : | H37: n/a | I37: 75 | J37: 75 | K37: 75 | L37: 75 | M37: 75
F38: GRAN TOTAL : | H38: n/a | I38: =SUM(I36:I37) -> 4833 | J38: =SUM(J36:J37) -> 3921 | K38: =SUM(K36:K37) -> 3151 | L38: =SUM(L36:L37) -> 2768 | M38: =SUM(M36:M37) -> 2244
F40: Tarifas Semestrales
F41: Prima de Titular : | H41: n/a | I41: =VLOOKUP($M$16,Tablas!$A$441:$H$464,4,TRUE) -> 2243.49 | J41: =VLOOKUP($M$16,Tablas!$A$441:$H$464,5,TRUE) -> 1760.13 | K41: =VLOOKUP($M$16,Tablas!$A$441:$H$464,6,TRUE) -> 1352.03 | L41: =VLOOKUP($M$16,Tablas!$A$441:$H$464,7,TRUE) -> 1149.04 | M41: =VLOOKUP($M$16,Tablas!$A$441:$H$464,8,TRUE) -> 871.32
F42: Prima de Cónyuge | H42: n/a | I42: =IF($J$16=1,0,(VLOOKUP($M$18,Tablas!$A$441:$H$464,4,TRUE))) -> 0 | J42: =IF($J$16=1,0,(VLOOKUP($M$18,Tablas!$A$441:$H$464,5,TRUE))) -> 0 | K42: =IF($J$16=1,0,(VLOOKUP($M$18,Tablas!$A$441:$H$464,6,TRUE))) -> 0 | L42: =IF($J$16=1,0,(VLOOKUP($M$18,Tablas!$A$441:$H$464,7,TRUE))) -> 0 | M42: =IF($J$16=1,0,(VLOOKUP($M$18,Tablas!$A$441:$H$464,8,TRUE))) -> 0
F43: Primas Hijos : | H43: n/a | I43: =IF($J$18=0,0,(VLOOKUP($J$18,Tablas!$A$465:$H$467,4,TRUE))) -> 0 | J43: =IF($J$18=0,0,(VLOOKUP($J$18,Tablas!$A$465:$H$467,5,TRUE))) -> 0 | K43: =IF($J$18=0,0,(VLOOKUP($J$18,Tablas!$A$465:$H$467,6,TRUE))) -> 0 | L43: =IF($J$18=0,0,(VLOOKUP($J$18,Tablas!$A$465:$H$467,7,TRUE))) -> 0 | M43: =IF($J$18=0,0,(VLOOKUP($J$18,Tablas!$A$465:$H$467,8,TRUE))) -> 0
F44: Prima Rider Complic. Maternidad | H44: n/a | I44: =+IF($I$20=FALSE,0,Tablas!D$468) -> 119.25 | J44: =+IF($I$20=FALSE,0,Tablas!E$468) -> 119.25 | K44: =+IF($I$20=FALSE,0,Tablas!F$468) -> 119.25 | L44: =+IF($I$20=FALSE,0,Tablas!G$468) -> 119.25 | M44: =+IF($I$20=FALSE,0,Tablas!H$468) -> 119.25
F45: Prima Rider Trasplante Organos | H45: n/a | I45: =IF($I$22=FALSE,0,Tablas!D$469) -> 159 | J45: =IF($I$22=FALSE,0,Tablas!E$469) -> 159 | K45: =IF($I$22=FALSE,0,Tablas!F$469) -> 159 | L45: =IF($I$22=FALSE,0,Tablas!G$469) -> 159 | M45: =IF($I$22=FALSE,0,Tablas!H$469) -> 159
F46: TOTAL PRIMA NETA : | H46: n/a | I46: =SUM(I41:I45) -> 2521.74 | J46: 2038.38 | K46: 1630.28 | L46: 1427.29 | M46: 1149.57
F47: Costo Administrativo Anual : | H47: n/a | I47: 75 | J47: 75 | K47: 75 | L47: 75 | M47: 75
F48: GRAN TOTAL (1ra Cuota) : | H48: n/a | I48: =SUM(I46:I47) -> 2596.74 | J48: =SUM(J46:J47) -> 2113.38 | K48: =SUM(K46:K47) -> 1705.28 | L48: =SUM(L46:L47) -> 1502.29 | M48: =SUM(M46:M47) -> 1224.57
F49: GRAN TOTAL (2da Cuota) : | H49: n/a | I49: =I46 -> 2521.74 | J49: =J46 -> 2038.38 | K49: 1630.28 | L49: 1427.29 | M49: 1149.57
F50: Tarifas en US $ - Válidas desde 01 enero 2023
F52: Este presupuesto solamente tiene carácter informativo y en ningún momento expresa compromiso legal para suministrarle cobertura de seguro. La emisión de una póliza de seguro Bupa está sujeta a todas las evaluaciones de riesgo por parte de Bupa y a la recepción de todos los pagos de prima requeridos.

Sheet Essential
C10: Cotización de Seguro Médico Internacional - Bupa ESSENTIAL Care
H12: =+'INGRESO DE DATOS'!$D$12 -> NOMBRE COMPLETO
H14: =+'INGRESO DE DATOS'!$D$21 -> AGENCIA
J16: =+'INGRESO DE DATOS'!$G$14 -> 1 | M16: =+'INGRESO DE DATOS'!$G$16 -> 18
F17: FECHA DE COTIZACION :
F18: =NOW() -> 2023-08-16T10:37:45.530 | J18: =+'INGRESO DE DATOS'!$J$14 -> 0 | M18: =+'INGRESO DE DATOS'!$J$16 -> 18
I20: FALSE | K20: COMPLICACIONES DE MATERNIDAD
I22: TRUE | K22: TRASPLANTE DE ORGANOS
F25: Deducibles | H25: PLAN 1 | I25: PLAN 2 | J25: PLAN 3 | K25: PLAN 4 | L25: PLAN 5 | M25: PLAN 6
F26: Dentro del pais de residencia | H26: n/a | I26: 1000 | J26: 2000 | K26: 5000 | L26: 10000 | M26: 20000
F27: Fuera del pais de residencia | H27: n/a | I27: 2000 | J27: 3000 | K27: 5000 | L27: 10000 | M27: 20000
F30: Tarifas Anuales
F31: Prima de Titular : | H31: n/a | I31: =VLOOKUP($M$16,Tablas!$A$475:$H$498,4,TRUE) -> 3556 | J31: =VLOOKUP($M$16,Tablas!$A$475:$H$498,5,TRUE) -> 2790 | K31: =VLOOKUP($M$16,Tablas!$A$475:$H$498,6,TRUE) -> 2140 | L31: =VLOOKUP($M$16,Tablas!$A$475:$H$498,7,TRUE) -> 1814 | M31: =VLOOKUP($M$16,Tablas!$A$475:$H$498,8,TRUE) -> 1381
F32: Prima de Cónyuge | H32: n/a | I32: =IF($J$16=1,0,(VLOOKUP($M$18,Tablas!$A$475:$H$498,4,TRUE))) -> 0 | J32: =IF($J$16=1,0,(VLOOKUP($M$18,Tablas!$A$475:$H$498,5,TRUE))) -> 0 | K32: =IF($J$16=1,0,(VLOOKUP($M$18,Tablas!$A$475:$H$498,6,TRUE))) -> 0 | L32: =IF($J$16=1,0,(VLOOKUP($M$18,Tablas!$A$475:$H$498,7,TRUE))) -> 0 | M32: =IF($J$16=1,0,(VLOOKUP($M$18,Tablas!$A$475:$H$498,8,TRUE))) -> 0
F33: Primas Hijos : | H33: n/a | I33: =IF($J$18=0,0,(VLOOKUP($J$18,Tablas!$A$499:$H$501,4,TRUE))) -> 0 | J33: =IF($J$18=0,0,(VLOOKUP($J$18,Tablas!$A$499:$H$501,5,TRUE))) -> 0 | K33: =IF($J$18=0,0,(VLOOKUP($J$18,Tablas!$A$499:$H$501,6,TRUE))) -> 0 | L33: =IF($J$18=0,0,(VLOOKUP($J$18,Tablas!$A$499:$H$501,7,TRUE))) -> 0 | M33: =IF($J$18=0,0,(VLOOKUP($J$18,Tablas!$A$499:$H$501,8,TRUE))) -> 0
F34: Prima Rider Complic. Maternidad | H34: n/a | I34: =+IF($I$20=FALSE,0,Tablas!D$502) -> 0 | J34: =+IF($I$20=FALSE,0,Tablas!E$502) -> 0 | K34: =+IF($I$20=FALSE,0,Tablas!F$502) -> 0 | L34: =+IF($I$20=FALSE,0,Tablas!G$502) -> 0 | M34: =+IF($I$20=FALSE,0,Tablas!H$502) -> 0
F35: Prima Rider Trasplante Organos | H35: n/a | I35: =IF($I$22=FALSE,0,Tablas!D$503) -> 300 | J35: =IF($I$22=FALSE,0,Tablas!E$503) -> 300 | K35: =IF($I$22=FALSE,0,Tablas!F$503) -> 300 | L35: =IF($I$22=FALSE,0,Tablas!G$503) -> 300 | M35: =IF($I$22=FALSE,0,Tablas!H$503) -> 300
F36: TOTAL PRIMA NETA : | H36: n/a | I36: =SUM(I31:I35) -> 3856 | J36: 3090 | K36: 2440 | L36: 2114 | M36: 1681
F37: Costo Administrativo Anual : | H37: n/a | I37: 75 | J37: 75 | K37: 75 | L37: 75 | M37: 75
F38: GRAN TOTAL : | H38: n/a | I38: =SUM(I36:I37) -> 3931 | J38: =SUM(J36:J37) -> 3165 | K38: =SUM(K36:K37) -> 2515 | L38: =SUM(L36:L37) -> 2189 | M38: =SUM(M36:M37) -> 1756
F40: Tarifas Semestrales
F41: Prima de Titular : | H41: n/a | I41: =VLOOKUP($M$16,Tablas!$A$508:$H$531,4,TRUE) -> 1884.68 | J41: =VLOOKUP($M$16,Tablas!$A$508:$H$531,5,TRUE) -> 1478.7 | K41: =VLOOKUP($M$16,Tablas!$A$508:$H$531,6,TRUE) -> 1134.2 | L41: =VLOOKUP($M$16,Tablas!$A$508:$H$531,7,TRUE) -> 961.42 | M41: =VLOOKUP($M$16,Tablas!$A$508:$H$531,8,TRUE) -> 731.93
F42: Prima de Cónyuge | H42: n/a | I42: =IF($J$16=1,0,(VLOOKUP($M$18,Tablas!$A$508:$H$531,4,TRUE))) -> 0 | J42: =IF($J$16=1,0,(VLOOKUP($M$18,Tablas!$A$508:$H$531,5,TRUE))) -> 0 | K42: =IF($J$16=1,0,(VLOOKUP($M$18,Tablas!$A$508:$H$531,6,TRUE))) -> 0 | L42: =IF($J$16=1,0,(VLOOKUP($M$18,Tablas!$A$508:$H$531,7,TRUE))) -> 0 | M42: =IF($J$16=1,0,(VLOOKUP($M$18,Tablas!$A$508:$H$531,8,TRUE))) -> 0
F43: Primas Hijos : | H43: n/a | I43: =IF($J$18=0,0,(VLOOKUP($J$18,Tablas!$A$532:$H$534,4,TRUE))) -> 0 | J43: =IF($J$18=0,0,(VLOOKUP($J$18,Tablas!$A$532:$H$534,5,TRUE))) -> 0 | K43: =IF($J$18=0,0,(VLOOKUP($J$18,Tablas!$A$532:$H$534,6,TRUE))) -> 0 | L43: =IF($J$18=0,0,(VLOOKUP($J$18,Tablas!$A$532:$H$534,7,TRUE))) -> 0 | M43: =IF($J$18=0,0,(VLOOKUP($J$18,Tablas!$A$532:$H$534,8,TRUE))) -> 0
F44: Prima Rider Complic. Maternidad | H44: n/a | I44: =+IF($I$20=FALSE,0,Tablas!D$535) -> 0 | J44: =+IF($I$20=FALSE,0,Tablas!E$535) -> 0 | K44: =+IF($I$20=FALSE,0,Tablas!F$535) -> 0 | L44: =+IF($I$20=FALSE,0,Tablas!G$535) -> 0 | M44: =+IF($I$20=FALSE,0,Tablas!H$535) -> 0
F45: Prima Rider Trasplante Organos | H45: n/a | I45: =IF($I$22=FALSE,0,Tablas!D$536) -> 159 | J45: =IF($I$22=FALSE,0,Tablas!E$536) -> 159 | K45: =IF($I$22=FALSE,0,Tablas!F$536) -> 159 | L45: =IF($I$22=FALSE,0,Tablas!G$536) -> 159 | M45: =IF($I$22=FALSE,0,Tablas!H$536) -> 159
F46: TOTAL PRIMA NETA : | H46: n/a | I46: =SUM(I41:I45) -> 2043.68 | J46: 1637.7 | K46: 1293.2 | L46: 1120.42 | M46: 890.93
F47: Costo Administrativo Anual : | H47: n/a | I47: 75 | J47: 75 | K47: 75 | L47: 75 | M47: 75
F48: GRAN TOTAL (1ra Cuota) : | H48: n/a | I48: =SUM(I46:I47) -> 2118.68 | J48: =SUM(J46:J47) -> 1712.7 | K48: =SUM(K46:K47) -> 1368.2 | L48: =SUM(L46:L47) -> 1195.42 | M48: =SUM(M46:M47) -> 965.93
F49: GRAN TOTAL (2da Cuota) : | H49: n/a | I49: =I46 -> 2043.68 | J49: =J46 -> 1637.7 | K49: 1293.2 | L49: 1120.42 | M49: 890.93
F50: Tarifas en US $ - Válidas desde 01 enero 2023
F52: Este presupuesto solamente tiene carácter informativo y en ningún momento expresa compromiso legal para suministrarle cobertura de seguro. La emisión de una póliza de seguro Bupa está sujeta a todas las evaluaciones de riesgo por parte de Bupa y a la recepción de todos los pagos de prima requeridos.

Sheet Critical
C10: Cotización de Seguro Médico Internacional - Bupa CRITICAL Care
H12: =+'INGRESO DE DATOS'!$D$12 -> NOMBRE COMPLETO
H14: =+'INGRESO DE DATOS'!$D$21 -> AGENCIA
J16: =+'INGRESO DE DATOS'!$G$14 -> 1 | M16: =+'INGRESO DE DATOS'!$G$16 -> 18
F17: FECHA DE COTIZACION :
F18: =NOW() -> 2023-08-16T10:37:45.530 | J18: =+'INGRESO DE DATOS'!$J$14 -> 0 | M18: =+'INGRESO DE DATOS'!$J$16 -> 18
J20: TRUE | M20: =IF(M16>=M18,M16,M18) -> 18
F22: CONDICION CRITICA CUBIERTA | I22: MAXIMO POR AÑO POLIZA | K22: TRASPLANTE DE ORGANOS
F24: Enfermedades neurológicas y accidentes cerebro-vasculares | I24: 150000 | K24: Tipo de trasplante | M24: Máximo Vitalicio
I25: por asegurado por año póliza | M25: por persona
F26: Cirugías cardíacas y angioplastías | I26: 150000 | K26: Corazón | M26: 300000
I27: por asegurado por año póliza | K27: Corazón y Pulmón (simultáneamente) | M27: 300000
F28: Tratamiento de cáncer | I28: 200000 | K28: Pulmón | M28: 250000
I29: por asegurado por año póliza | K29: Pancreas | M29: 250000
F30: Trauma grave (Politraumatismos) | I30: 150000 | K30: Pancreas y Riñón (simultáneamente) | M30: 300000
I31: por asegurado por año póliza | K31: Riñón | M31: 200000
F32: Insuficiencia renal crónica (Diálisis) | I32: 100000 | K32: Hígado | M32: 200000
I33: por asegurado por año póliza | K33: Médula ósea | M33: 250000
F34: Quemaduras graves | I34: 300000 | K34: La cobertura de trasplante de órganos está limitada a la Red de Proveedores para Procedimiento de Trasplante de la Compañía y no se proporcionará cobertura en proveedores fuera de esta Red especializada.
I35: por asegurado por año póliza
F36: Desorden infeccioso grave (Septicemia) | I36: 150000
I37: por asegurado por año póliza
F39: Deducibles | H39: PLAN 1 | I39: PLAN 2 | J39: PLAN 3 | K39: PLAN 4 | L39: PLAN 5 | M39: PLAN 6
F40: Dentro del pais de residencia | H40: 2000 | I40: 3500 | J40: 5000 | K40: 10000 | L40: 20000 | M40: 50000
F41: Fuera del pais de residencia | H41: 2000 | I41: 3500 | J41: 5000 | K41: 10000 | L41: 20000 | M41: 50000
F43: Tarifas Anuales
F44: Prima por plan individual : | H44: =IF((($J$16+$J$18)=1),(VLOOKUP($M$20,Tablas!$A$543:$T$544,3,TRUE)),0) -> 2320 | I44: =IF((($J$16+$J$18)=1),(VLOOKUP($M$20,Tablas!$A$543:$T$544,6,TRUE)),0) -> 1879 | J44: =IF((($J$16+$J$18)=1),(VLOOKUP($M$20,Tablas!$A$543:$T$544,9,TRUE)),0) -> 1640 | K44: =IF((($J$16+$J$18)=1),(VLOOKUP($M$20,Tablas!$A$543:$T$544,12,TRUE)),0) -> 1304 | L44: =IF((($J$16+$J$18)=1),(VLOOKUP($M$20,Tablas!$A$543:$T$544,15,TRUE)),0) -> 980 | M44: =IF((($J$16+$J$18)=1),(VLOOKUP($M$20,Tablas!$A$543:$T$544,18,TRUE)),0) -> 613
F45: Prima por plan para 2 personas : | H45: =IF((($J$16+$J$18)=2),(VLOOKUP($M$20,Tablas!$A$543:$T$544,4,TRUE)),0) -> 0 | I45: =IF((($J$16+$J$18)=2),(VLOOKUP($M$20,Tablas!$A$543:$T$544,7,TRUE)),0) -> 0 | J45: =IF((($J$16+$J$18)=2),(VLOOKUP($M$20,Tablas!$A$543:$T$544,10,TRUE)),0) -> 0 | K45: =IF((($J$16+$J$18)=2),(VLOOKUP($M$20,Tablas!$A$543:$T$544,13,TRUE)),0) -> 0 | L45: =IF((($J$16+$J$18)=2),(VLOOKUP($M$20,Tablas!$A$543:$T$544,16,TRUE)),0) -> 0 | M45: =IF((($J$16+$J$18)=2),(VLOOKUP($M$20,Tablas!$A$543:$T$544,19,TRUE)),0) -> 0
F46: Prima por plan familiar : | H46: =IF((($J$16+$J$18)>=3),(VLOOKUP($M$20,Tablas!$A$543:$T$544,5,TRUE)),0) -> 0 | I46: =IF((($J$16+$J$18)>=3),(VLOOKUP($M$20,Tablas!$A$543:$T$544,8,TRUE)),0) -> 0 | J46: =IF((($J$16+$J$18)>=3),(VLOOKUP($M$20,Tablas!$A$543:$T$544,11,TRUE)),0) -> 0 | K46: =IF((($J$16+$J$18)>=3),(VLOOKUP($M$20,Tablas!$A$543:$T$544,14,TRUE)),0) -> 0 | L46: =IF((($J$16+$J$18)>=3),(VLOOKUP($M$20,Tablas!$A$543:$T$544,17,TRUE)),0) -> 0 | M46: =IF((($J$16+$J$18)>=3),(VLOOKUP($M$20,Tablas!$A$543:$T$544,20,TRUE)),0) -> 0
F47: TOTAL PRIMA NETA : | H47: =SUM(H44:H46) -> 2320 | I47: =SUM(I44:I46) -> 1879 | J47: 1640 | K47: 1304 | L47: 980 | M47: 613
F48: Costo Administrativo Anual : | H48: 75 | I48: 75 | J48: 75 | K48: 75 | L48: 75 | M48: 75
F49: GRAN TOTAL : | H49: =SUM(H47:H48) -> 2395 | I49: 1954 | J49: 1715 | K49: 1379 | L49: 1055 | M49: 688
F50: Tarifas en US $ - Válidas desde 01 enero 2023
F53: Este presupuesto solamente tiene carácter informativo y en ningún momento expresa compromiso legal para suministrarle cobertura de seguro. La emisión de una póliza de seguro Bupa está sujeta a todas las evaluaciones de riesgo por parte de Bupa y a la recepción de todos los pagos de prima requeridos.

Sheet Resumen tarifas anuales
C12: Cotización de Seguro Médico Internacional - BUPA CARE
C14: =+'INGRESO DE DATOS'!$D$12 -> NOMBRE COMPLETO
C16: =+'INGRESO DE DATOS'!$D$21 -> AGENCIA
E18: =+'INGRESO DE DATOS'!$G$14 -> 1 | H18: =+'INGRESO DE DATOS'!$G$16 -> 18
A19: FECHA DE COTIZACION :
A20: =NOW() -> 2023-08-16T10:37:45.530 | E20: =+'INGRESO DE DATOS'!$J$14 -> 0 | H20: =+'INGRESO DE DATOS'!$J$16 -> 18
A22: Deducibles | C22: PLAN 1 | D22: PLAN 2 | E22: PLAN 3 | F22: PLAN 4 | G22: PLAN 5 | H22: PLAN 6
A23: Dentro del pais de residencia | C23: n/a | D23: 1000 | E23: 2000 | F23: 5000 | G23: 10000 | H23: 20000
A24: Fuera del pais de residencia | C24: n/a | D24: 2000 | E24: 3000 | F24: 5000 | G24: 10000 | H24: 20000
A26: PRODUCTOS | C26: Tarifas Anuales
A27: Bupa Exclusive Care | C27: n/a | D27: =+Exclusive!I37 -> 10994 | E27: =+Exclusive!J37 -> 7288 | F27: =+Exclusive!K37 -> 5489 | G27: =+Exclusive!L37 -> 3983 | H27: =+Exclusive!M37 -> 3196
A28: Bupa Privilege Care | C28: n/a | D28: =+Privilege!I37 -> 9214 | E28: =+Privilege!J37 -> 6361 | F28: =+Privilege!K37 -> 4791 | G28: =+Privilege!L37 -> 3485 | H28: =+Privilege!M37 -> 2723
A29: Bupa Advantage Care | C29: n/a | D29: =+'Advantage (Mundial)'!I38 -> 6513 | E29: =+'Advantage (Mundial)'!J38 -> 5045 | F29: =+'Advantage (Mundial)'!K38 -> 4004 | G29: =+'Advantage (Mundial)'!L38 -> 3211 | H29: =+'Advantage (Mundial)'!M38 -> 2668
A30: Bupa Secure Care | C30: n/a | D30: =+Secure!I38 -> 4833 | E30: =+Secure!J38 -> 3921 | F30: =+Secure!K38 -> 3151 | G30: =+Secure!L38 -> 2768 | H30: =+Secure!M38 -> 2244
A31: Bupa Essential Care | C31: n/a | D31: =+Essential!I38 -> 3931 | E31: =+Essential!J38 -> 3165 | F31: =+Essential!K38 -> 2515 | G31: =+Essential!L38 -> 2189 | H31: =+Essential!M38 -> 1756
A33: Deducibles | C33: PLAN 1 | D33: PLAN 2 | E33: PLAN 3 | F33: PLAN 4 | G33: PLAN 5 | H33: PLAN 6
A34: Dentro del pais de residencia | C34: 2000 | D34: 3500 | E34: 5000 | F34: 10000 | G34: 20000 | H34: 50000
A35: Fuera del pais de residencia | C35: 2000 | D35: 3500 | E35: 5000 | F35: 10000 | G35: 20000 | H35: 50000
C36: Tarifas Anuales
A37: Bupa Critical Care | C37: =+Critical!H49 -> 2395 | D37: =+Critical!I49 -> 1954 | E37: =+Critical!J49 -> 1715 | F37: =+Critical!K49 -> 1379 | G37: =+Critical!L49 -> 1055 | H37: =+Critical!M49 -> 688
A38: Tarifas en US $ - Válidas desde 01 enero 2023
A40: Este presupuesto solamente tiene carácter informativo y en ningún momento expresa compromiso legal para suministrarle cobertura de seguro. La emisión de una póliza de seguro Bupa está sujeta a todas las evaluaciones de riesgo por parte de Bupa y a la recepción de todos los pagos de prima requeridos.

Sheet Comparacion de Beneficios
A1: 2023 BUPA CARE COMPARACION DE BENEFICIOS

Sheet Tablas (hidden)
A2: EXCLUSIVE | J2: FACTOR SEMESTRAL : | L2: 0.53
A3: TARIFAS ANUALES
A4: EDAD
D5: DW2 | E5: DW3 | F5: DW4 | G5: DW5 | H5: DW6 | J5: 2 | K5: 6 | L5: 10 | M5: 14 | N5: 18
A6: 18 | B6: 18-24 | D6: 10919 | E6: 7213 | F6: 5189 | G6: 3683 | H6: 2896 | J6: 0 | K6: 0 | L6: 0 | M6: 0 | N6: 0
A7: 25 | B7: 25-29 | D7: 11452 | E7: 7970 | F7: 5751 | G7: 4083 | H7: 3207 | J7: 0 | K7: 0 | L7: 0 | M7: 0 | N7: 0
A8: 30 | B8: 30-34 | D8: 11915 | E8: 8551 | F8: 6437 | G8: 4895 | H8: 3860 | J8: 0 | K8: 0 | L8: 0 | M8: 0 | N8: 0
A9: 35 | B9: 35-39 | D9: 13345 | E9: 9573 | F9: 7218 | G9: 5487 | H9: 4323 | J9: 0 | K9: 0 | L9: 0 | M9: 0 | N9: 0
A10: 40 | B10: 40-44 | D10: 15472 | E10: 10474 | F10: 8008 | G10: 6033 | H10: 4753 | J10: 0 | K10: 0 | L10: 0 | M10: 0 | N10: 0
A11: 45 | B11: 45-49 | D11: 17300 | E11: 11710 | F11: 8956 | G11: 6737 | H11: 5313 | J11: 0 | K11: 0 | L11: 0 | M11: 0 | N11: 0
A12: 50 | B12: 50-54 | D12: 22135 | E12: 15362 | F12: 11683 | G12: 9524 | H12: 7508 | J12: 0 | K12: 0 | L12: 0 | M12: 0 | N12: 0
A13: 55 | B13: 55-59 | D13: 23553 | E13: 16351 | F13: 12427 | G13: 10133 | H13: 7994 | J13: 0 | K13: 0 | L13: 0 | M13: 0 | N13: 0
A14: 60 | B14: 60 | D14: 25660 | E14: 17835 | F14: 14303 | G14: 12210 | H14: 9928 | J14: 0 | K14: 0 | L14: 0 | M14: 0 | N14: 0
A15: 61 | B15: 61 | D15: 27564 | E15: 19168 | F15: 15361 | G15: 13124 | H15: 10672 | J15: 0 | K15: 0 | L15: 0 | M15: 0 | N15: 0
A16: 62 | B16: 62 | D16: 30179 | E16: 20994 | F16: 16832 | G16: 14366 | H16: 11683 | J16: 0 | K16: 0 | L16: 0 | M16: 0 | N16: 0
A17: 63 | B17: 63 | D17: 32092 | E17: 22321 | F17: 17885 | G17: 15282 | H17: 12422 | J17: 0 | K17: 0 | L17: 0 | M17: 0 | N17: 0
A18: 64 | B18: 64 | D18: 34712 | E18: 24153 | F18: 19356 | G18: 16528 | H18: 13446 | J18: 0 | K18: 0 | L18: 0 | M18: 0 | N18: 0
A19: 65 | B19: 65 | D19: 45381 | E19: 31500 | F19: 24472 | G19: 22042 | H19: 18960 | J19: 0 | K19: 0 | L19: 0 | M19: 0 | N19: 0
A20: 66 | B20: 66 | D20: 52719 | E20: 36607 | F20: 28436 | G20: 25626 | H20: 22032 | J20: 0 | K20: 0 | L20: 0 | M20: 0 | N20: 0
A21: 67 | B21: 67 | D21: 57588 | E21: 39982 | F21: 31061 | G21: 27979 | H21: 24066 | J21: 0 | K21: 0 | L21: 0 | M21: 0 | N21: 0
A22: 68 | B22: 68 | D22: 63764 | E22: 44265 | F22: 34398 | G22: 30992 | H22: 26648 | J22: 0 | K22: 0 | L22: 0 | M22: 0 | N22: 0
A23: 69 | B23: 69 | D23: 70157 | E23: 48701 | F23: 37848 | G23: 34094 | H23: 29323 | J23: 0 | K23: 0 | L23: 0 | M23: 0 | N23: 0
A24: 70 | B24: 70 | D24: 86345 | E24: 59307 | F24: 44553 | G24: 39730 | H24: 34495 | J24: 0 | K24: 0 | L24: 0 | M24: 0 | N24: 0
A25: 71 | B25: 71 | D25: 89739 | E25: 61635 | F25: 46306 | G25: 41294 | H25: 35854 | J25: 0 | K25: 0 | L25: 0 | M25: 0 | N25: 0
A26: 72 | B26: 72 | D26: 92280 | E26: 63380 | F26: 47609 | G26: 42463 | H26: 36865 | J26: 0 | K26: 0 | L26: 0 | M26: 0 | N26: 0
A27: 73 | B27: 73 | D27: 95669 | E27: 65712 | F27: 49356 | G27: 44022 | H27: 38216 | J27: 0 | K27: 0 | L27: 0 | M27: 0 | N27: 0
A28: 74 | B28: 74 | D28: 97360 | E28: 66869 | F28: 50240 | G28: 44806 | H28: 38895 | J28: 0 | K28: 0 | L28: 0 | M28: 0 | N28: 0
A29: 75 | B29: 75+ | D29: 101602 | E29: 69781 | F29: 52419 | G29: 46754 | H29: 40594 | J29: 0 | K29: 0 | L29: 0 | M29: 0 | N29: 0
A30: 1 | B30: 1 Child | D30: 3795 | E30: 2796 | F30: 2320 | G30: 1958 | H30: 1526 | J30: 0 | K30: 0 | L30: 0 | M30: 0 | N30: 0
A31: 2 | B31: 2 Children | D31: 6037 | E31: 4450 | F31: 3693 | G31: 3104 | H31: 2422 | J31: 0 | K31: 0 | L31: 0 | M31: 0 | N31: 0
A32: 3 | B32: 3+ Children | D32: 8845 | E32: 6519 | F32: 5408 | G32: 4553 | H32: 3549 | J32: 0 | K32: 0 | L32: 0 | M32: 0 | N32: 0
A33: 1 | B33: Rider Comp. Maternidad | D33: 0 | E33: 0 | F33: 225 | G33: 225 | H33: 225
A34: 1 | B34: Transplante de organos | D34: 0 | E34: 0 | F34: 0 | G34: 0 | H34: 0
A36: TARIFAS SEMESTRALES
A37: EDAD
D38: DW2 | E38: DW3 | F38: DW4 | G38: DW5 | H38: DW6 | J38: 3 | K38: 7 | L38: 11 | M38: 15 | N38: 19
A39: 18 | B39: 18-24 | D39: =$L$2*D6 -> 5787.07 | E39: =$L$2*E6 -> 3822.89 | F39: 2750.17 | G39: 1951.99 | H39: 1534.88 | J39: 0 | K39: 0 | L39: 0 | M39: 0 | N39: 0
A40: 25 | B40: 25-29 | D40: =$L$2*D7 -> 6069.56 | E40: 4224.1 | F40: 3048.03 | G40: 2163.99 | H40: 1699.71 | J40: 0 | K40: 0 | L40: 0 | M40: 0 | N40: 0
A41: 30 | B41: 30-34 | D41: 6314.95 | E41: 4532.03 | F41: 3411.61 | G41: 2594.35 | H41: 2045.8 | J41: 0 | K41: 0 | L41: 0 | M41: 0 | N41: 0
A42: 35 | B42: 35-39 | D42: 7072.85 | E42: 5073.69 | F42: 3825.54 | G42: 2908.11 | H42: 2291.19 | J42: 0 | K42: 0 | L42: 0 | M42: 0 | N42: 0
A43: 40 | B43: 40-44 | D43: 8200.16 | E43: 5551.22 | F43: 4244.24 | G43: 3197.49 | H43: 2519.09 | J43: 0 | K43: 0 | L43: 0 | M43: 0 | N43: 0
A44: 45 | B44: 45-49 | D44: 9169 | E44: 6206.3 | F44: 4746.68 | G44: 3570.61 | H44: 2815.89 | J44: 0 | K44: 0 | L44: 0 | M44: 0 | N44: 0
A45: 50 | B45: 50-54 | D45: 11731.55 | E45: 8141.86 | F45: 6191.99 | G45: 5047.72 | H45: 3979.24 | J45: 0 | K45: 0 | L45: 0 | M45: 0 | N45: 0
A46: 55 | B46: 55-59 | D46: 12483.09 | E46: 8666.03 | F46: 6586.31 | G46: 5370.49 | H46: 4236.82 | J46: 0 | K46: 0 | L46: 0 | M46: 0 | N46: 0
A47: 60 | B47: 60 | D47: 13599.8 | E47: 9452.55 | F47: 7580.59 | G47: 6471.3 | H47: 5261.84 | J47: 0 | K47: 0 | L47: 0 | M47: 0 | N47: 0
A48: 61 | B48: 61 | D48: 14608.92 | E48: 10159.04 | F48: 8141.33 | G48: 6955.72 | H48: 5656.16 | J48: 0 | K48: 0 | L48: 0 | M48: 0 | N48: 0
A49: 62 | B49: 62 | D49: 15994.87 | E49: 11126.82 | F49: 8920.96 | G49: 7613.98 | H49: 6191.99 | J49: 0 | K49: 0 | L49: 0 | M49: 0 | N49: 0
A50: 63 | B50: 63 | D50: 17008.76 | E50: 11830.13 | F50: 9479.05 | G50: 8099.46 | H50: 6583.66 | J50: 0 | K50: 0 | L50: 0 | M50: 0 | N50: 0
A51: 64 | B51: 64 | D51: 18397.36 | E51: 12801.09 | F51: 10258.68 | G51: 8759.84 | H51: 7126.38 | J51: 0 | K51: 0 | L51: 0 | M51: 0 | N51: 0
A52: 65 | B52: 65 | D52: 24051.93 | E52: 16695 | F52: 12970.16 | G52: 11682.26 | H52: 10048.8 | J52: 0 | K52: 0 | L52: 0 | M52: 0 | N52: 0
A53: 66 | B53: 66 | D53: 27941.07 | E53: 19401.71 | F53: 15071.08 | G53: 13581.78 | H53: 11676.96 | J53: 0 | K53: 0 | L53: 0 | M53: 0 | N53: 0
A54: 67 | B54: 67 | D54: 30521.64 | E54: 21190.46 | F54: 16462.33 | G54: 14828.87 | H54: 12754.98 | J54: 0 | K54: 0 | L54: 0 | M54: 0 | N54: 0
A55: 68 | B55: 68 | D55: 33794.92 | E55: 23460.45 | F55: 18230.94 | G55: 16425.76 | H55: 14123.44 | J55: 0 | K55: 0 | L55: 0 | M55: 0 | N55: 0
A56: 69 | B56: 69 | D56: 37183.21 | E56: 25811.53 | F56: 20059.44 | G56: 18069.82 | H56: =$L$2*H23 -> 15541.19 | J56: 0 | K56: 0 | L56: 0 | M56: 0 | N56: 0
A57: 70 | B57: 70 | D57: 45762.85 | E57: 31432.71 | F57: 23613.09 | G57: 21056.9 | H57: 18282.35 | J57: 0 | K57: 0 | L57: 0 | M57: 0 | N57: 0
A58: 71 | B58: 71 | D58: 47561.67 | E58: 32666.55 | F58: 24542.18 | G58: 21885.82 | H58: 19002.62 | J58: 0 | K58: 0 | L58: 0 | M58: 0 | N58: 0
A59: 72 | B59: 72 | D59: 48908.4 | E59: 33591.4 | F59: 25232.77 | G59: 22505.39 | H59: 19538.45 | J59: 0 | K59: 0 | L59: 0 | M59: 0 | N59: 0
A60: 73 | B60: 73 | D60: 50704.57 | E60: 34827.36 | F60: 26158.68 | G60: 23331.66 | H60: 20254.48 | J60: 0 | K60: 0 | L60: 0 | M60: 0 | N60: 0
A61: 74 | B61: 74 | D61: 51600.8 | E61: 35440.57 | F61: 26627.2 | G61: 23747.18 | H61: 20614.35 | J61: 0 | K61: 0 | L61: 0 | M61: 0 | N61: 0
A62: 75 | B62: 75+ | D62: 53849.06 | E62: 36983.93 | F62: 27782.07 | G62: 24779.62 | H62: 21514.82 | J62: 0 | K62: 0 | L62: 0 | M62: 0 | N62: 0
A63: 1 | B63: 1 Child | D63: 2011.35 | E63: 1481.88 | F63: 1229.6 | G63: 1037.74 | H63: 808.78 | J63: 0 | K63: 0 | L63: 0 | M63: 0 | N63: 0
A64: 2 | B64: 2 Children | D64: 3199.61 | E64: 2358.5 | F64: 1957.29 | G64: 1645.12 | H64: 1283.66 | J64: 0 | K64: 0 | L64: 0 | M64: 0 | N64: 0
A65: 3 | B65: 3+ Children | D65: 4687.85 | E65: 3455.07 | F65: 2866.24 | G65: 2413.09 | H65: 1880.97 | J65: 0 | K65: 0 | L65: 0 | M65: 0 | N65: 0
A66: 1 | B66: Rider Comp. Maternidad | D66: =+D33*$L$2 -> 0 | E66: 0 | F66: 119.25 | G66: 119.25 | H66: 119.25
A67: 1 | B67: Transplante de organos | D67: 0 | E67: 0 | F67: 0 | G67: 0 | H67: 0
A69: DIAMOND (LATINAMERICA ONLY)
A70: TARIFAS ANUALES
A71: EDAD
A73: 18 | B73: - 24
A74: 25 | B74: - 29
A75: 30 | B75: - 34
A76: 35 | B76: - 39
A77: 40 | B77: - 44
A78: 45 | B78: - 49
A79: 50 | B79: - 54
A80: 55 | B80: - 59
A81: 60
A82: 61
A83: 62
A84: 63
A85: 64
A86: 65
A87: 66
A88: 67
A89: 68
A90: 69
A91: 70
A92: 71
A93: 72
A94: 73
A95: 74
A96: 75 | B96: o más
A97: 1 | B97: Hijo
A98: 2 | B98: Hijos
A99: 3 | B99: Hijos o más
A100: 1 | B100: Rider Comp. Maternidad
A101: 1 | B101: Transplante de organos
A103: TARIFAS SEMESTRALES
A104: EDAD
A106: 18 | B106: - 24
A107: 25 | B107: - 29
A108: 30 | B108: - 34
A109: 35 | B109: - 39
A110: 40 | B110: - 44
A111: 45 | B111: - 49
A112: 50 | B112: - 54
A113: 55 | B113: - 59
A114: 60
A115: 61
A116: 62
A117: 63
A118: 64
A119: 65
A120: 66
A121: 67
A122: 68
A123: 69
A124: 70
A125: 71
A126: 72
A127: 73
A128: 74
A129: 75 | B129: o más
A130: 1 | B130: Hijo
A131: 2 | B131: Hijos
A132: 3 | B132: Hijos o más
A133: 1 | B133: Rider Comp. Maternidad
A134: 1 | B134: Transplante de organos
A136: PRIVILEGE
A137: TARIFAS ANUALES
A138: EDAD
D139: CW2 | E139: CW3 | F139: CW4 | G139: CW5 | H139: CW6 | J139: 2 | K139: 6 | L139: 10 | M139: 14 | N139: 18
A140: 18 | B140: 18-24 | D140: 9139 | E140: 6286 | F140: 4491 | G140: 3185 | H140: 2423 | J140: 0 | K140: 0 | L140: 0 | M140: 0 | N140: 0
A141: 25 | B141: 25-29 | D141: 9590 | E141: 6953 | F141: 4972 | G141: 3528 | H141: 2687 | J141: 0 | K141: 0 | L141: 0 | M141: 0 | N141: 0
A142: 30 | B142: 30-34 | D142: 10019 | E142: 7436 | F142: 5580 | G142: 4262 | H142: 3262 | J142: 0 | K142: 0 | L142: 0 | M142: 0 | N142: 0
A143: 35 | B143: 35-39 | D143: 11212 | E143: 8323 | F143: 6252 | G143: 4783 | H143: 3649 | J143: 0 | K143: 0 | L143: 0 | M143: 0 | N143: 0
A144: 40 | B144: 40-44 | D144: 12981 | E144: 9128 | F144: 6953 | G144: 5272 | H144: 4028 | J144: 0 | K144: 0 | L144: 0 | M144: 0 | N144: 0
A145: 45 | B145: 45-49 | D145: 14506 | E145: 10203 | F145: 7768 | G145: 5895 | H145: 4505 | J145: 0 | K145: 0 | L145: 0 | M145: 0 | N145: 0
A146: 50 | B146: 50-54 | D146: 18959 | E146: 13460 | F146: 10199 | G146: 8404 | H146: 6426 | J146: 0 | K146: 0 | L146: 0 | M146: 0 | N146: 0
A147: 55 | B147: 55-59 | D147: 20166 | E147: 14312 | F147: 10852 | G147: 8944 | H147: 6840 | J147: 0 | K147: 0 | L147: 0 | M147: 0 | N147: 0
A148: 60 | B148: 60 | D148: 21964 | E148: 15540 | F148: 12353 | G148: 10637 | H148: 8551 | J148: 0 | K148: 0 | L148: 0 | M148: 0 | N148: 0
A149: 61 | B149: 61 | D149: 23598 | E149: 16696 | F149: 13267 | G149: 11432 | H149: 9182 | J149: 0 | K149: 0 | L149: 0 | M149: 0 | N149: 0
A150: 62 | B150: 62 | D150: 25829 | E150: 18287 | F150: 14530 | G150: 12518 | H150: 10056 | J150: 0 | K150: 0 | L150: 0 | M150: 0 | N150: 0
A151: 63 | B151: 63 | D151: 27465 | E151: 19439 | F151: 15448 | G151: 13313 | H151: 10689 | J151: 0 | K151: 0 | L151: 0 | M151: 0 | N151: 0
A152: 64 | B152: 64 | D152: 29705 | E152: 21036 | F152: 16719 | G152: 14403 | H152: 11567 | J152: 0 | K152: 0 | L152: 0 | M152: 0 | N152: 0
A153: 65 | B153: 65 | D153: 38836 | E153: 27429 | F153: 21132 | G153: 19201 | H153: 16304 | J153: 0 | K153: 0 | L153: 0 | M153: 0 | N153: 0
A154: 66 | B154: 66 | D154: 45115 | E154: 31872 | F154: 24549 | G154: 22316 | H154: 18943 | J154: 0 | K154: 0 | L154: 0 | M154: 0 | N154: 0
A155: 67 | B155: 67 | D155: 49272 | E155: 34810 | F155: 26814 | G155: 24364 | H155: 20695 | J155: 0 | K155: 0 | L155: 0 | M155: 0 | N155: 0
A156: 68 | B156: 68 | D156: 54555 | E156: 38540 | F156: 29695 | G156: 26984 | H156: 22911 | J156: 0 | K156: 0 | L156: 0 | M156: 0 | N156: 0
A157: 69 | B157: 69 | D157: 60025 | E157: 42399 | F157: 32665 | G157: 29684 | H157: 25213 | J157: 0 | K157: 0 | L157: 0 | M157: 0 | N157: 0
A158: 70 | B158: 70 | D158: 73871 | E158: 51627 | F158: 38453 | G158: 34595 | H158: 29648 | J158: 0 | K158: 0 | L158: 0 | M158: 0 | N158: 0
A159: 71 | B159: 71 | D159: 76773 | E159: 53650 | F159: 39960 | G159: 35950 | H159: 30820 | J159: 0 | K159: 0 | L159: 0 | M159: 0 | N159: 0
A160: 72 | B160: 72 | D160: 78950 | E160: 55169 | F160: 41093 | G160: 36967 | H160: 31688 | J160: 0 | K160: 0 | L160: 0 | M160: 0 | N160: 0
A161: 73 | B161: 73 | D161: 81842 | E161: 57198 | F161: 42600 | G161: 38328 | H161: 32859 | J161: 0 | K161: 0 | L161: 0 | M161: 0 | N161: 0
A162: 74 | B162: 74 | D162: 83293 | E162: 58210 | F162: 43356 | G162: 39009 | H162: 33438 | J162: 0 | K162: 0 | L162: 0 | M162: 0 | N162: 0
A163: 75 | B163: 75+ | D163: 86920 | E163: 60744 | F163: 45243 | G163: 40706 | H163: 34887 | J163: 0 | K163: 0 | L163: 0 | M163: 0 | N163: 0
A164: 1 | B164: 1 Child | D164: 3169 | E164: 2317 | F164: 1825 | G164: 1543 | H164: 1141 | J164: 0 | K164: 0 | L164: 0 | M164: 0 | N164: 0
A165: 2 | B165: 2 Children | D165: 5036 | E165: 3686 | F165: 2907 | G165: 2450 | H165: 1814 | J165: 0 | K165: 0 | L165: 0 | M165: 0 | N165: 0
A166: 3 | B166: 3+ Children | D166: 7389 | E166: 5401 | F166: 4258 | G166: 3584 | H166: 2657 | J166: 0 | K166: 0 | L166: 0 | M166: 0 | N166: 0
A167: 1 | B167: Rider Comp. Maternidad | D167: 0 | E167: 0 | F167: 225 | G167: 225 | H167: 225
A168: 1 | B168: Transplante de organos | D168: 0 | E168: 0 | F168: 0 | G168: 0 | H168: 0
A170: TARIFAS SEMESTRALES
A171: EDAD
D172: CW2 | E172: CW3 | F172: CW4 | G172: CW5 | H172: CW6 | J172: 3 | K172: 7 | L172: 11 | M172: 15 | N172: 19
A173: 18 | B173: 18-24 | D173: =$L$2*D140 -> 4843.67 | E173: =$L$2*E140 -> 3331.58 | F173: 2380.23 | G173: 1688.05 | H173: 1284.19 | J173: 0 | K173: 0 | L173: 0 | M173: 0 | N173: 0
A174: 25 | B174: 25-29 | D174: =$L$2*D141 -> 5082.7 | E174: 3685.09 | F174: 2635.16 | G174: 1869.84 | H174: 1424.11 | J174: 0 | K174: 0 | L174: 0 | M174: 0 | N174: 0
A175: 30 | B175: 30-34 | D175: 5310.07 | E175: 3941.08 | F175: 2957.4 | G175: 2258.86 | H175: 1728.86 | J175: 0 | K175: 0 | L175: 0 | M175: 0 | N175: 0
A176: 35 | B176: 35-39 | D176: 5942.36 | E176: 4411.19 | F176: 3313.56 | G176: 2534.99 | H176: =$L$2*H143 -> 1933.97 | J176: 0 | K176: 0 | L176: 0 | M176: 0 | N176: 0
A177: 40 | B177: 40-44 | D177: 6879.93 | E177: 4837.84 | F177: 3685.09 | G177: 2794.16 | H177: 2134.84 | J177: 0 | K177: 0 | L177: 0 | M177: 0 | N177: 0
A178: 45 | B178: 45-49 | D178: 7688.18 | E178: 5407.59 | F178: 4117.04 | G178: 3124.35 | H178: 2387.65 | J178: 0 | K178: 0 | L178: 0 | M178: 0 | N178: 0
A179: 50 | B179: 50-54 | D179: 10048.27 | E179: 7133.8 | F179: 5405.47 | G179: 4454.12 | H179: 3405.78 | J179: 0 | K179: 0 | L179: 0 | M179: 0 | N179: 0
A180: 55 | B180: 55-59 | D180: 10687.98 | E180: 7585.36 | F180: 5751.56 | G180: 4740.32 | H180: 3625.2 | J180: 0 | K180: 0 | L180: 0 | M180: 0 | N180: 0
A181: 60 | B181: 60 | D181: 11640.92 | E181: 8236.2 | F181: 6547.09 | G181: 5637.61 | H181: 4532.03 | J181: 0 | K181: 0 | L181: 0 | M181: 0 | N181: 0
A182: 61 | B182: 61 | D182: 12506.94 | E182: 8848.88 | F182: 7031.51 | G182: 6058.96 | H182: 4866.46 | J182: 0 | K182: 0 | L182: 0 | M182: 0 | N182: 0
A183: 62 | B183: 62 | D183: 13689.37 | E183: 9692.11 | F183: 7700.9 | G183: 6634.54 | H183: 5329.68 | J183: 0 | K183: 0 | L183: 0 | M183: 0 | N183: 0
A184: 63 | B184: 63 | D184: 14556.45 | E184: =$L$2*E151 -> 10302.67 | F184: 8187.44 | G184: 7055.89 | H184: 5665.17 | J184: 0 | K184: 0 | L184: 0 | M184: 0 | N184: 0
A185: 64 | B185: 64 | D185: 15743.65 | E185: 11149.08 | F185: 8861.07 | G185: 7633.59 | H185: 6130.51 | J185: 0 | K185: 0 | L185: 0 | M185: 0 | N185: 0
A186: 65 | B186: 65 | D186: 20583.08 | E186: 14537.37 | F186: 11199.96 | G186: 10176.53 | H186: 8641.12 | J186: 0 | K186: 0 | L186: 0 | M186: 0 | N186: 0
A187: 66 | B187: 66 | D187: 23910.95 | E187: 16892.16 | F187: 13010.97 | G187: 11827.48 | H187: 10039.79 | J187: 0 | K187: 0 | L187: 0 | M187: 0 | N187: 0
A188: 67 | B188: 67 | D188: =$L$2*D155 -> 26114.16 | E188: 18449.3 | F188: 14211.42 | G188: 12912.92 | H188: 10968.35 | J188: 0 | K188: 0 | L188: 0 | M188: 0 | N188: 0
A189: 68 | B189: 68 | D189: 28914.15 | E189: 20426.2 | F189: 15738.35 | G189: 14301.52 | H189: 12142.83 | J189: 0 | K189: 0 | L189: 0 | M189: 0 | N189: 0
A190: 69 | B190: 69 | D190: 31813.25 | E190: 22471.47 | F190: 17312.45 | G190: 15732.52 | H190: 13362.89 | J190: 0 | K190: 0 | L190: 0 | M190: 0 | N190: 0
A191: 70 | B191: 70 | D191: 39151.63 | E191: 27362.31 | F191: 20380.09 | G191: 18335.35 | H191: 15713.44 | J191: 0 | K191: 0 | L191: 0 | M191: 0 | N191: 0
A192: 71 | B192: 71 | D192: 40689.69 | E192: 28434.5 | F192: 21178.8 | G192: 19053.5 | H192: 16334.6 | J192: 0 | K192: 0 | L192: 0 | M192: 0 | N192: 0
A193: 72 | B193: 72 | D193: 41843.5 | E193: 29239.57 | F193: 21779.29 | G193: 19592.51 | H193: 16794.64 | J193: 0 | K193: 0 | L193: 0 | M193: 0 | N193: 0
A194: 73 | B194: 73 | D194: 43376.26 | E194: 30314.94 | F194: 22578 | G194: 20313.84 | H194: 17415.27 | J194: 0 | K194: 0 | L194: 0 | M194: 0 | N194: 0
A195: 74 | B195: 74 | D195: 44145.29 | E195: 30851.3 | F195: 22978.68 | G195: 20674.77 | H195: 17722.14 | J195: 0 | K195: 0 | L195: 0 | M195: 0 | N195: 0
A196: 75 | B196: 75+ | D196: 46067.6 | E196: 32194.32 | F196: 23978.79 | G196: 21574.18 | H196: 18490.11 | J196: 0 | K196: 0 | L196: 0 | M196: 0 | N196: 0
A197: 1 | B197: 1 Child | D197: 1679.57 | E197: 1228.01 | F197: 967.25 | G197: 817.79 | H197: 604.73 | J197: 0 | K197: 0 | L197: 0 | M197: 0 | N197: 0
A198: 2 | B198: 2 Children | D198: 2669.08 | E198: 1953.58 | F198: 1540.71 | G198: 1298.5 | H198: 961.42 | J198: 0 | K198: 0 | L198: 0 | M198: 0 | N198: 0
A199: 3 | B199: 3+ Children | D199: 3916.17 | E199: 2862.53 | F199: 2256.74 | G199: 1899.52 | H199: 1408.21 | J199: 0 | K199: 0 | L199: 0 | M199: 0 | N199: 0
A200: 1 | B200: Rider Comp. Maternidad | D200: =+D167*$L$2 -> 0 | E200: 0 | F200: 119.25 | G200: 119.25 | H200: 119.25
A201: 1 | B201: Transplante de organos | D201: 0 | E201: 0 | F201: 0 | G201: 0 | H201: 0
A203: COMPLETE (LATINAMERICA ONLY)
A204: TARIFAS ANUALES
A205: EDAD
A207: 18 | B207: - 24
A208: 25 | B208: - 29
A209: 30 | B209: - 34
A210: 35 | B210: - 39
... 329 more rows
